bitfinex-derivatives/quotes_BTCF0:USTF0_20250506
["timestamp","ask_amount","ask_price","bid_price","bid_amount"]
[1746499134747,0.2153608,94194.0,94193.0,0.3284473]
[1746499135357,0.003,94194.0,94193.0,0.3284473]
[1746499135560,0.004,94194.0,94193.0,0.3284473]
[1746499137954,0.003,94194.0,94193.0,0.3284473]
[1746499138547,0.004,94194.0,94193.0,0.3284473]
[1746499138854,0.002,94194.0,94193.0,0.3284473]
[1746499139056,0.2163595,94194.0,94193.0,0.3284473]
[1746499139652,0.004,94194.0,94193.0,0.3284473]
[1746499140556,0.2163595,94194.0,94193.0,0.3284473]
[1746499141469,0.004,94194.0,94193.0,0.3284473]
[1746499141851,0.2163595,94194.0,94193.0,0.3284473]
[1746499143862,0.2143595,94194.0,94193.0,0.3284473]
[1746499144165,0.2173595,94194.0,94193.0,0.3284473]
[1746499144560,0.2173595,94194.0,94193.0,0.2753573]
[1746499145762,0.2153595,94194.0,94193.0,0.2753573]
[1746499146062,0.2183595,94194.0,94193.0,0.2753573]
[1746499146963,0.2193595,94194.0,94193.0,0.2753573]
[1746499148366,0.5801595,94194.0,94193.0,0.2753573]
[1746499151457,0.6132595,94194.0,94193.0,0.2753573]
[1746499156365,0.6451595,94194.0,94193.0,0.2753573]
[1746499158167,0.6451595,94194.0,94193.0,0.2449573]
[1746499158366,0.6451595,94194.0,94186.0,0.0530939]
[1746499158367,0.0530939,94187.0,94180.0,0.0530975]
[1746499158574,0.0530939,94187.0,94170.0,0.15424658]
[1746499158575,0.2123979,94178.0,94177.0,0.2123979]
[1746499158974,0.2432979,94178.0,94177.0,0.2123979]
[1746499159576,0.2750979,94178.0,94177.0,0.2441979]
[1746499159877,0.2750979,94178.0,94177.0,0.0318]
[1746499160078,0.2750979,94178.0,94177.0,0.2123979]
[1746499160578,0.2750979,94178.0,94177.0,0.2133979]
[1746499162081,0.2750979,94178.0,94177.0,0.001]
[1746499163081,0.3812819,94178.0,94177.0,0.001]
[1746499163279,0.4992819,94178.0,94177.0,0.001]
[1746499163881,0.90791671,94178.0,94177.0,0.001]
[1746499164084,0.90791671,94178.0,94160.0,0.01066863]
[1746499164085,0.2124295,94163.0,94160.0,0.01066863]
[1746499164287,0.5732295,94163.0,94162.0,0.21402467]
[1746499164677,0.6794295,94163.0,94162.0,0.00159297]
[1746499164884,0.7424295,94163.0,94162.0,0.00159297]
[1746499165082,0.8604295,94163.0,94162.0,0.00159297]
[1746499165390,0.8604295,94163.0,94162.0,0.00459297]
[1746499166084,0.212452,94153.0,94149.0,0.0531151]
[1746499166285,0.212452,94153.0,94152.0,0.21404746]
[1746499166993,0.275452,94153.0,94152.0,0.21404746]
[1746499167187,0.275452,94153.0,94152.0,0.22004746]
[1746499168689,0.275452,94153.0,94152.0,0.22404746]
[1746499169590,0.275452,94153.0,94152.0,0.25664746]
[1746499171993,0.275452,94153.0,94152.0,0.30664746]
[1746499172590,0.3608,94163.0,94162.0,0.2124317]
[1746499172784,0.0318,94168.0,94167.0,0.2124204]
[1746499172984,0.10748652,94171.0,94170.0,0.2124137]
[1746499173187,0.10748652,94171.0,94170.0,0.2624137]
[1746499173188,0.2124114,94171.0,94170.0,0.2624137]
[1746499173791,0.2124114,94171.0,94170.0,0.2946137]
[1746499174184,0.2124114,94171.0,94170.0,0.2956137]
[1746499175693,0.2124114,94171.0,94170.0,0.2456137]
[1746499175885,0.2441114,94171.0,94170.0,0.2456137]
[1746499177695,0.3608,94172.0,94171.0,0.2124114]
[1746499177998,0.3608,94172.0,94171.0,0.2747114]
[1746499180808,0.5732092,94172.0,94171.0,0.2747114]
[1746499181098,0.5732092,94172.0,94171.0,0.2426114]
[1746499181785,0.5732092,94172.0,94171.0,0.0302]
[1746499182296,0.5732092,94172.0,94171.0,0.2426114]
[1746499184192,0.5732092,94172.0,94171.0,0.0302]
[1746499186197,0.5732092,94172.0,94171.0,0.2426114]
[1746499191203,0.3608,94172.0,94171.0,0.2626114]
[1746499198609,0.3638,94172.0,94171.0,0.2626114]
[1746499198810,0.3668,94172.0,94171.0,0.2626114]
[1746499199213,0.006,94172.0,94171.0,0.2626114]
[1746499208315,0.006,94172.0,94171.0,0.2426114]
[1746499215232,0.006,94172.0,94171.0,0.2726114]
[1746499216122,0.003,94172.0,94171.0,0.2726114]
[1746499216309,0.006,94172.0,94171.0,0.2726114]
[1746499216810,0.003,94172.0,94171.0,0.2726114]
[1746499217009,0.006,94172.0,94171.0,0.2726114]
[1746499221216,0.0373,94172.0,94171.0,0.2726114]
[1746499223820,0.0705,94172.0,94171.0,0.2726114]
[1746499224008,0.0705,94172.0,94171.0,0.2426114]
[1746499228427,0.0705,94172.0,94155.0,0.0531117]
[1746499228723,0.2655389,94165.0,94164.0,0.2124153]
[1746499230425,0.2124317,94165.0,94164.0,0.2655205]
[1746499230823,0.2134317,94165.0,94164.0,0.2655205]
[1746499231210,0.2144317,94165.0,94164.0,0.2655205]
[1746499231722,0.002,94165.0,94164.0,0.2655205]
[1746499233326,0.002,94165.0,94164.0,0.6263205]
[1746499233820,0.002,94165.0,94164.0,0.6863205]
[1746499234017,0.10748652,94173.0,94172.0,0.2124092]
[1746499234217,0.16084146,94197.0,94181.0,0.2123889]
[1746499234218,0.0323,94190.0,94181.0,0.2123889]
[1746499234432,0.0323,94190.0,94184.0,0.2123821]
[1746499235131,0.0323,94190.0,94184.0,0.3303821]
[1746499235330,0.16084146,94187.0,94186.0,0.2123776]
[1746499236222,0.16084146,94187.0,94186.0,0.3303776]
[1746499237230,0.16684146,94187.0,94186.0,0.3313776]
[1746499237820,0.16684146,94187.0,94186.0,0.34202974]
[1746499238032,0.17184146,94187.0,94186.0,0.70282974]
[1746499238239,0.17184146,94187.0,94186.0,0.72282974]
[1746499240030,0.011,94187.0,94186.0,0.72282974]
[1746499245134,0.011,94187.0,94186.0,1.22282974]
[1746499247939,0.0328,94199.0,94198.0,0.2123505]
[1746499248239,0.0328,94199.0,94198.0,0.2791905]
[1746499248736,0.0314,94204.0,94203.0,0.2123393]
[1746499248924,0.0015,94205.0,94204.0,0.212337]
[1746499249131,0.0015,94205.0,94204.0,0.691137]
[1746499250037,0.0015,94205.0,94204.0,0.827289]
[1746499250839,0.0015,94205.0,94204.0,1.284137]
[1746499251439,0.0015,94205.0,94204.0,1.288137]
[1746499251830,0.0015,94205.0,94204.0,1.2959568]
[1746499252541,0.0015,94205.0,94204.0,1.2979568]
[1746499252938,0.0015,94205.0,94204.0,1.2939568]
[1746499253433,1e-07,94206.0,94205.0,0.2123348]
[1746499253639,1e-07,94206.0,94205.0,0.3356348]
[1746499254339,1e-07,94206.0,94205.0,0.4536348]
[1746499254535,1e-07,94206.0,94205.0,0.4546348]
[1746499254839,1e-07,94206.0,94205.0,0.9546348]
[1746499255547,1e-07,94206.0,94205.0,0.9556348]
[1746499256035,1e-07,94206.0,94205.0,0.9546348]
[1746499256340,1e-07,94206.0,94205.0,0.9556348]
[1746499257240,1e-07,94206.0,94205.0,0.4556348]
[1746499258640,1e-07,94206.0,94205.0,0.4546348]
[1746499258841,1e-07,94206.0,94205.0,0.4536348]
[1746499260439,0.0010001,94206.0,94205.0,0.3622348]
[1746499260640,0.0010001,94206.0,94205.0,0.3303348]
[1746499260839,0.0972001,94206.0,94205.0,0.3303348]
[1746499261239,0.0972001,94206.0,94205.0,0.2123348]
[1746499261642,0.0962001,94206.0,94205.0,0.2123348]
[1746499261937,0.0962001,94206.0,94202.0,0.0530849]
[1746499261938,0.0530852,94205.0,94202.0,0.0530852]
[1746499262145,0.2654245,94205.0,94204.0,0.212337]
[1746499262342,0.2450393,94205.0,94204.0,0.212337]
[1746499263141,0.2460393,94205.0,94204.0,0.212337]
[1746499263337,0.0367,94205.0,94204.0,0.212337]
[1746499264143,0.2490348,94205.0,94204.0,0.212337]
[1746499264845,0.2480348,94205.0,94204.0,0.212337]
[1746499265050,0.2510348,94205.0,94204.0,0.212337]
[1746499267945,0.0357,94205.0,94204.0,0.212337]
[1746499268152,0.0387,94205.0,94204.0,0.212337]
[1746499269644,0.0357,94205.0,94204.0,0.212337]
[1746499269849,0.0387,94205.0,94204.0,0.212337]
[1746499282464,0.0695,94205.0,94204.0,0.212337]
[1746499285266,0.0695,94205.0,94204.0,0.278137]
[1746499285858,0.0695,94205.0,94204.0,0.245637]
[1746499300175,0.2123639,94196.0,94195.0,0.2654442]
[1746499300377,0.2123521,94198.0,94197.0,0.2123505]
[1746499300878,0.2439521,94198.0,94197.0,0.2123505]
[1746499301473,0.2770521,94198.0,94197.0,0.2123505]
[1746499301976,0.2790521,94198.0,94197.0,0.2123505]
[1746499302377,0.2810521,94198.0,94197.0,0.2123505]
[1746499303083,0.0687,94198.0,94197.0,0.2123505]
[1746499303279,0.0667,94198.0,94197.0,0.2441505]
[1746499303481,0.0697,94198.0,94197.0,0.2441505]
[1746499303783,0.2830505,94198.0,94197.0,0.2123505]
[1746499304083,0.3892105,94198.0,94197.0,0.0155492]
[1746499304278,0.3862105,94198.0,94197.0,0.227902]
[1746499304584,0.3892105,94198.0,94197.0,0.2123528]
[1746499304779,0.3862105,94198.0,94197.0,0.2123528]
[1746499305081,0.3912105,94198.0,94197.0,0.2123528]
[1746499305381,0.3872105,94198.0,94197.0,0.2123528]
[1746499305582,0.3922105,94198.0,94197.0,0.2123528]
[1746499307284,0.3932105,94198.0,94197.0,0.2123528]
[1746499307780,0.2654487,94196.0,94195.0,0.2123562]
[1746499308088,0.6262487,94196.0,94195.0,0.2123562]
[1746499308288,0.7986127,94196.0,94195.0,0.2123562]
[1746499309180,0.8036127,94196.0,94195.0,0.2123562]
[1746499310794,0.8086127,94196.0,94195.0,0.2123562]
[1746499311492,0.8407127,94196.0,94195.0,0.2123562]
[1746499312393,0.8357127,94196.0,94195.0,0.2123562]
[1746499312593,0.8407127,94196.0,94195.0,0.2123562]
[1746499313894,0.8307127,94196.0,94195.0,0.2123562]
[1746499314094,0.8397127,94196.0,94195.0,0.2123562]
[1746499315185,0.7335487,94196.0,94195.0,0.2123562]
[1746499321402,0.2123595,94194.0,94193.0,0.2751599]
[1746499321598,0.2123595,94194.0,94193.0,0.29086881]
[1746499322199,0.2123595,94194.0,94193.0,0.29086889]
[1746499322398,0.2123595,94194.0,94193.0,0.2428599]
[1746499323693,0.2163595,94194.0,94193.0,0.2428599]
[1746499323892,0.2203595,94194.0,94193.0,0.2428599]
[1746499325204,0.2123731,94188.0,94187.0,0.26705497]
[1746499325502,0.5731731,94188.0,94187.0,0.27756829]
[1746499326303,0.6370731,94188.0,94187.0,0.30956829]
[1746499326500,0.6400731,94188.0,94187.0,0.30956829]
[1746499327301,0.6074731,94188.0,94187.0,0.30956829]
[1746499327498,0.3648,94188.0,94187.0,0.30956829]
[1746499327697,0.3648,94188.0,94187.0,0.33986829]
[1746499328103,0.3678,94188.0,94187.0,0.33986829]
[1746499328290,0.3678,94188.0,94187.0,0.50956829]
[1746499328494,0.3678,94188.0,94187.0,0.52522394]
[1746499329800,0.3688,94188.0,94187.0,0.52522394]
[1746499330297,0.3608,94188.0,94187.0,0.52522394]
[1746499330497,0.3648,94188.0,94187.0,0.52522394]
[1746499330897,0.3638,94188.0,94187.0,0.52522394]
[1746499331098,0.3618,94188.0,94187.0,0.52524737]
[1746499331299,0.3638,94188.0,94187.0,0.52524737]
[1746499331692,0.003,94188.0,94187.0,0.52524737]
[1746499331898,0.003,94188.0,94187.0,0.50524737]
[1746499332097,0.004,94188.0,94187.0,0.50524737]
[1746499333001,0.004,94188.0,94187.0,0.5052202]
[1746499334704,0.2163731,94188.0,94187.0,0.4521264]
[1746499334906,0.2163731,94188.0,94187.0,0.4218331]
[1746499335113,0.2163731,94188.0,94187.0,0.3038331]
[1746499335600,0.2488731,94188.0,94187.0,0.28818119]
[1746499335904,0.3973,94188.0,94187.0,0.28818119]
[1746499336101,0.004,94188.0,94187.0,0.40618119]
[1746499339603,0.3608,94196.0,94195.0,0.2123573]
[1746499339800,0.5731573,94196.0,94195.0,0.2123573]
[1746499340112,0.0530897,94195.0,94189.0,0.0530923]
[1746499340310,0.2123708,94190.0,94189.0,0.2123661]
[1746499340809,0.2437708,94190.0,94189.0,0.2123661]
[1746499341411,0.2477708,94190.0,94189.0,0.2123661]
[1746499341807,0.2123731,94188.0,94187.0,0.22447999]
[1746499342014,0.5731731,94188.0,94187.0,0.22448119]
[1746499342211,0.5731731,94188.0,94187.0,0.01210589]
[1746499342408,0.6793451,94188.0,94187.0,0.00159257]
[1746499342714,0.2124046,94174.0,94173.0,0.22039255]
[1746499342915,0.2124046,94174.0,94173.0,0.22283002]
[1746499343211,0.2124046,94174.0,94173.0,0.25573002]
[1746499343598,0.2439046,94174.0,94173.0,0.25573002]
[1746499344004,0.2459046,94174.0,94173.0,0.25573002]
[1746499344716,0.2459046,94174.0,94173.0,0.28723002]
[1746499346918,0.2459046,94174.0,94173.0,0.29507526]
[1746499350115,0.2459046,94174.0,94173.0,0.41307526]
[1746499352223,0.2784046,94174.0,94173.0,0.41307526]
[1746499354322,0.2784046,94174.0,94173.0,0.40523002]
[1746499355417,0.2784046,94174.0,94173.0,0.37373002]
[1746499356623,0.2784046,94174.0,94173.0,0.34083002]
[1746499358822,0.066,94174.0,94173.0,0.34083002]
[1746499359223,0.066,94174.0,94173.0,0.37373002]
[1746499360625,0.066,94174.0,94173.0,0.40543002]
[1746499361723,0.002,94174.0,94173.0,0.40543002]
[1746499362029,0.002,94174.0,94173.0,0.43543002]
[1746499366238,0.002,94174.0,94173.0,0.54161801]
[1746499373133,0.0326,94187.0,94186.0,0.2123776]
[1746499373442,0.0326,94187.0,94186.0,0.2323776]
[1746499374137,0.40863481,94199.0,94196.0,0.212355]
[1746499374435,0.061,94203.0,94196.0,0.573155]
[1746499374643,0.1343542,94199.0,94198.0,0.2123505]
[1746499375226,0.1343542,94199.0,94198.0,0.3303505]
[1746499375435,0.1343542,94199.0,94198.0,0.3503505]
[1746499375827,0.1035819,94199.0,94198.0,0.4866105]
[1746499376026,0.0015,94205.0,94204.0,0.212337]
[1746499376227,0.0015,94205.0,94204.0,0.693137]
[1746499376433,0.0015,94205.0,94204.0,0.799289]
[1746499376635,0.0015,94205.0,94204.0,1.299289]
[1746499376842,0.0015,94205.0,94204.0,1.361489]
[1746499377044,0.0015,94205.0,94204.0,1.479489]
[1746499378142,0.0015,94205.0,94204.0,1.481489]
[1746499378346,0.0015,94205.0,94204.0,1.485489]
[1746499378745,0.09363696,94206.0,94205.0,0.2123348]
[1746499379046,0.0307,94213.0,94212.0,0.212319]
[1746499379246,0.0307,94213.0,94212.0,0.683119]
[1746499379946,0.0307,94213.0,94212.0,0.746719]
[1746499380147,0.0307,94213.0,94212.0,0.864719]
[1746499380854,0.3608,94230.0,94224.0,0.2122919]
[1746499381143,0.0303,94229.0,94224.0,0.2122919]
[1746499382053,0.031,94228.0,94224.0,0.2122919]
[1746499382356,0.031,94228.0,94224.0,0.22297439]
[1746499383357,0.033,94225.0,94224.0,0.22297439]
[1746499383851,0.033,94225.0,94224.0,0.23083825]
[1746499388162,0.033,94225.0,94224.0,0.34883825]
[1746499397072,0.031,94228.0,94224.0,0.49734635]
[1746499397273,0.3608,94250.0,94225.0,0.1154719]
[1746499397469,0.0612,94239.0,94235.0,0.5730672]
[1746499398161,0.3608,94252.0,94235.0,0.7523672]
[1746499398358,0.0615,94250.0,94249.0,0.2122356]
[1746499400277,0.0615,94250.0,94249.0,0.2425356]
[1746499400570,0.2122379,94248.0,94247.0,0.6260986]
[1746499400766,0.2122379,94248.0,94247.0,0.5730388]
[1746499401163,0.3625379,94248.0,94247.0,0.5730388]
[1746499401463,0.1503,94248.0,94247.0,0.5730388]
[1746499402571,0.1503,94248.0,94247.0,0.2122388]
[1746499406871,0.1503,94248.0,94247.0,0.22778868]
[1746499407478,0.1503,94248.0,94247.0,0.22778731]
[1746499407869,0.1503,94248.0,94247.0,0.2122388]
[1746499416478,0.256404,94248.0,94245.0,0.2122406]
[1746499416672,0.2122467,94246.0,94245.0,0.2653016]
[1746499417075,0.2423467,94246.0,94245.0,0.2653016]
[1746499417377,0.3603467,94246.0,94245.0,0.2653016]
[1746499419379,0.615004,94246.0,94224.0,0.37922023]
[1746499419674,0.5730809,94233.0,94232.0,0.2122706]
[1746499420080,0.6910809,94233.0,94232.0,0.2122706]
[1746499420283,1.09971571,94233.0,94232.0,0.2122706]
[1746499420775,1.25890451,94233.0,94232.0,0.001]
[1746499420982,1.32538451,94233.0,94232.0,0.001]
[1746499421181,0.2122942,94223.0,94220.0,0.0530749]
[1746499421382,0.97972901,94223.0,94222.0,0.21388618]
[1746499421573,1.08586101,94223.0,94222.0,0.21388618]
[1746499421773,1.08586101,94223.0,94222.0,0.00159198]
[1746499421980,1.14776101,94223.0,94222.0,0.00159198]
[1746499422178,1.26476101,94223.0,94222.0,0.00159198]
[1746499422683,1.26576101,94223.0,94222.0,0.00159198]
[1746499423484,0.2123325,94206.0,94197.0,0.0530877]
[1746499423782,0.5731325,94206.0,94200.0,0.01060034]
[1746499423974,0.6792845,94206.0,94201.0,0.0323]
[1746499424172,0.7972845,94206.0,94201.0,0.0323]
[1746499424582,0.7992845,94206.0,94201.0,0.0323]
[1746499424784,0.8626845,94206.0,94201.0,0.0323]
[1746499425082,0.7565325,94206.0,94201.0,0.0323]
[1746499425274,0.7565325,94206.0,94205.0,0.21339631]
[1746499426184,0.7575325,94206.0,94205.0,0.21339631]
[1746499429984,0.3967325,94206.0,94205.0,0.21339631]
[1746499430294,0.7575325,94206.0,94205.0,0.21339631]
[1746499430589,0.3967325,94206.0,94205.0,0.21339631]
[1746499430885,0.7575325,94206.0,94205.0,0.21339631]
[1746499433090,0.3967325,94206.0,94205.0,0.21339631]
[1746499433292,0.7575325,94206.0,94205.0,0.21339631]
[1746499435791,0.7575325,94206.0,94205.0,0.24499631]
[1746499435990,0.8239725,94206.0,94205.0,0.24499631]
[1746499436289,0.7575325,94206.0,94205.0,0.24499631]
[1746499436490,0.8239725,94206.0,94205.0,0.24499631]
[1746499439898,0.4631725,94206.0,94205.0,0.24499631]
[1746499440195,0.8239725,94206.0,94205.0,0.24499631]
[1746499440489,0.4818,94206.0,94205.0,0.24499631]
[1746499441192,0.3638,94206.0,94205.0,0.24499631]
[1746499441789,0.5761325,94206.0,94205.0,0.24499631]
[1746499441994,0.3638,94206.0,94205.0,0.24499631]
[1746499442186,0.4818,94206.0,94205.0,0.24499631]
[1746499444092,0.3638,94206.0,94205.0,0.24499631]
[1746499448600,0.5761325,94206.0,94205.0,0.00106151]
[1746499449298,0.6941325,94206.0,94205.0,0.00106151]
[1746499450606,0.6941325,94206.0,94205.0,0.21339631]
[1746499451605,0.6941325,94206.0,94205.0,0.24579631]
[1746499452704,0.7606125,94206.0,94205.0,0.24579631]
[1746499452999,0.6941325,94206.0,94205.0,0.24579631]
[1746499453206,0.7606125,94206.0,94205.0,0.24579631]
[1746499453404,0.6941325,94206.0,94205.0,0.24579631]
[1746499453706,0.7606125,94206.0,94205.0,0.24579631]
[1746499453898,0.6941325,94206.0,94205.0,0.24579631]
[1746499454099,0.2123731,94190.0,94189.0,0.2123708]
[1746499454409,0.2123731,94188.0,94185.0,0.01067744]
[1746499454796,0.2123731,94188.0,94187.0,0.21396787]
[1746499455307,0.3303731,94188.0,94187.0,0.21396787]
[1746499455501,0.3931731,94188.0,94187.0,0.24656787]
[1746499455708,0.3891731,94188.0,94187.0,0.24656787]
[1746499456205,0.3891731,94188.0,94187.0,0.24956787]
[1746499456406,0.3891731,94188.0,94187.0,0.25156787]
[1746499458898,0.118,94188.0,94187.0,0.25156787]
[1746499459103,0.0664,94189.0,94188.0,0.2123731]
[1746499459308,0.2123657,94192.0,94191.0,0.2654529]
[1746499459510,0.2123657,94192.0,94191.0,0.2985529]
[1746499460105,0.3303657,94192.0,94191.0,0.2985529]
[1746499460902,0.3626657,94192.0,94191.0,0.2985529]
[1746499461108,0.2446641,94192.0,94191.0,0.2985529]
[1746499461915,0.2446641,94192.0,94191.0,0.2995529]
[1746499464610,0.3608,94194.0,94193.0,0.2123618]
[1746499464814,0.3608,94194.0,94193.0,0.2523618]
[1746499465006,0.3608,94194.0,94193.0,0.2123618]
[1746499465917,0.3608,94194.0,94193.0,0.2133618]
[1746499468915,0.62098771,94197.0,94196.0,0.212355]
[1746499469218,0.52663481,94197.0,94196.0,0.212355]
[1746499470107,0.40863481,94197.0,94196.0,0.212355]
[1746499472517,0.40863481,94197.0,94196.0,0.244955]
[1746499474220,0.0322,94199.0,94198.0,0.2123505]
[1746499475014,0.0322,94199.0,94198.0,0.2437505]
[1746499475419,0.0332,94199.0,94198.0,0.2437505]
[1746499479624,0.001,94199.0,94198.0,0.2437505]
[1746499479924,0.001,94199.0,94198.0,0.2755505]
[1746499502032,0.001,94199.0,94198.0,0.2437505]
[1746499503739,0.001,94199.0,94198.0,0.2637505]
[1746499504333,0.001,94199.0,94198.0,0.4137505]
[1746499504626,0.0647,94214.0,94209.0,0.2123257]
[1746499504835,0.0313,94213.0,94211.0,0.2123212]
[1746499505036,0.0313,94213.0,94211.0,0.22281021]
[1746499505643,0.0313,94213.0,94211.0,0.28611021]
[1746499505832,0.40863481,94223.0,94211.0,0.28611021]
[1746499506140,0.0305,94217.0,94211.0,0.40411021]
[1746499506635,0.16456564,94212.0,94211.0,0.40411021]
[1746499507442,0.003,94212.0,94211.0,0.40411021]
[1746499508444,0.006,94212.0,94211.0,0.40411021]
[1746499509942,0.003,94212.0,94211.0,0.40411021]
[1746499511443,0.001,94212.0,94211.0,0.40411021]
[1746499511644,0.003,94212.0,94211.0,0.40411021]
[1746499517544,0.003,94212.0,94211.0,0.5102542]
[1746499517742,0.003,94212.0,94211.0,0.5502542]
[1746499520743,0.002,94212.0,94211.0,0.5502542]
[1746499521550,0.0624,94221.0,94220.0,0.2123009]
[1746499522250,0.0301,94221.0,94220.0,0.2123009]
[1746499522551,0.0321,94221.0,94220.0,0.2739009]
[1746499522753,0.0667,94221.0,94220.0,0.2739009]
[1746499526262,0.0667,94221.0,94220.0,0.2432009]
[1746499527247,0.004,94221.0,94220.0,0.2432009]
[1746499527446,0.0345,94221.0,94220.0,0.2432009]
[1746499530559,0.004,94221.0,94220.0,0.2432009]
[1746499530855,0.004,94221.0,94220.0,0.2732009]
[1746499531153,0.0332,94228.0,94227.0,0.2122852]
[1746499531354,0.0332,94228.0,94227.0,0.5730852]
[1746499532254,0.0332,94228.0,94227.0,0.6910852]
[1746499532762,0.0342,94228.0,94227.0,0.6910852]
[1746499534058,0.0342,94228.0,94227.0,0.7110852]
[1746499534264,0.0352,94228.0,94227.0,0.7110852]
[1746499536372,0.0352,94228.0,94227.0,0.71888642]
[1746499536972,0.0352,94228.0,94227.0,0.69888642]
[1746499537273,0.0352,94228.0,94227.0,0.78148642]
[1746499537471,0.0352,94228.0,94227.0,0.76148642]
[1746499537674,0.0352,94228.0,94227.0,0.69888642]
[1746499537878,0.0352,94228.0,94227.0,0.12580122]
[1746499538174,0.0352,94228.0,94227.0,0.22008642]
[1746499538973,0.0342,94228.0,94227.0,0.22008642]
[1746499539177,0.0352,94228.0,94227.0,0.22008642]
[1746499539361,0.0342,94228.0,94227.0,0.22008642]
[1746499544278,0.0304,94235.0,94234.0,0.2122694]
[1746499544579,0.0951,94235.0,94234.0,0.2122694]
[1746499544979,0.0951,94235.0,94234.0,0.2444694]
[1746499545178,0.0951,94235.0,94234.0,0.2755694]
[1746499545377,0.0961,94235.0,94234.0,0.2755694]
[1746499545771,0.0981,94235.0,94234.0,0.2755694]
[1746499546581,0.0981,94235.0,94234.0,0.2955694]
[1746499547784,0.0351,94235.0,94234.0,0.2955694]
[1746499548078,0.001,94236.0,94235.0,0.2122672]
[1746499548584,0.001,94236.0,94235.0,0.2932672]
[1746499549174,0.001,94236.0,94235.0,0.3993832]
[1746499549379,0.0315,94250.0,94238.0,0.0530651]
[1746499549683,0.0305,94249.0,94248.0,0.2122379]
[1746499550276,0.0629,94249.0,94248.0,0.2122379]
[1746499551583,0.0629,94249.0,94248.0,0.22271048]
[1746499553978,0.0305,94249.0,94248.0,0.22271048]
[1746499558190,0.1485,94249.0,94248.0,0.22271048]
[1746499559492,0.1485,94249.0,94248.0,0.23831381]
[1746499559884,0.118,94249.0,94248.0,0.23831381]
[1746499560079,0.0304,94254.0,94253.0,0.2122266]
[1746499560289,0.063,94254.0,94253.0,0.22782993]
[1746499560492,0.063,94254.0,94253.0,0.2278299]
[1746499561183,0.181,94254.0,94253.0,0.2278299]
[1746499561593,0.181,94254.0,94253.0,0.22778456]
[1746499562589,0.181,94254.0,94253.0,0.2122266]
[1746499564991,0.1484,94254.0,94253.0,0.2122266]
[1746499565190,0.118,94254.0,94253.0,0.5730266]
[1746499565597,0.118,94254.0,94253.0,0.58852554]
[1746499566494,0.118,94254.0,94253.0,0.5730266]
[1746499566693,0.0977,94260.0,94259.0,0.2122131]
[1746499568084,0.2157,94260.0,94259.0,0.2122131]
[1746499569798,0.2157,94260.0,94259.0,0.22771618]
[1746499570497,0.2157,94260.0,94259.0,0.2122131]
[1746499572692,0.2157,94260.0,94259.0,0.22772408]
[1746499573599,0.2157,94260.0,94259.0,0.2122131]
[1746499574792,0.2157,94260.0,94259.0,0.22773424]
[1746499575595,0.2157,94260.0,94259.0,0.2122131]
[1746499576498,0.2157,94260.0,94259.0,0.2732131]
[1746499578098,0.15,94260.0,94259.0,0.2732131]
[1746499578298,0.032,94260.0,94259.0,0.2732131]
[1746499578492,0.032,94260.0,94259.0,0.3059131]
[1746499580101,0.15,94260.0,94259.0,0.3059131]
[1746499582901,0.15,94260.0,94259.0,0.2752131]
[1746499592708,0.118,94260.0,94259.0,0.2752131]
[1746499594813,0.118,94260.0,94259.0,0.2852131]
[1746499595113,0.118,94260.0,94259.0,0.2752131]
[1746499600819,0.118,94260.0,94259.0,0.2952131]
[1746499601508,0.118,94260.0,94259.0,0.2752131]
[1746499609418,0.118,94260.0,94259.0,0.6360131]
[1746499610612,0.118,94260.0,94259.0,0.6560131]
[1746499611221,0.1499,94260.0,94259.0,0.6560131]
[1746499612324,0.118,94260.0,94259.0,0.6560131]
[1746499612725,1e-07,94266.0,94265.0,0.2121996]
[1746499613223,0.1180001,94266.0,94265.0,0.2121996]
[1746499614833,0.1180001,94266.0,94265.0,0.22776842]
[1746499615628,0.1180001,94266.0,94265.0,0.33385242]
[1746499615823,0.0982,94284.0,94274.0,0.2121793]
[1746499616024,0.0982,94284.0,94274.0,0.24774812]
[1746499616729,0.0982,94284.0,94274.0,0.2951793]
[1746499617135,0.1195,94275.0,94274.0,0.2951793]
[1746499621039,0.1195,94275.0,94274.0,0.2751793]
[1746499621837,0.1195,94275.0,94274.0,0.3051793]
[1746499622044,0.1195,94275.0,94274.0,0.2751793]
[1746499622938,0.1195,94275.0,94274.0,0.32072823]
[1746499623332,0.1195,94275.0,94274.0,0.32072824]
[1746499623933,0.0982,94284.0,94283.0,0.2121591]
[1746499624140,0.2162,94284.0,94283.0,0.58850804]
[1746499624341,0.1506,94284.0,94283.0,0.58850804]
[1746499624731,0.1506,94284.0,94283.0,0.68220804]
[1746499625132,0.0655,94291.0,94290.0,0.2121433]
[1746499625336,0.0655,94291.0,94290.0,0.23572122]
[1746499625833,0.0655,94297.0,94295.0,0.2121321]
[1746499626042,0.0335,94296.0,94295.0,0.22768104]
[1746499626235,0.1515,94296.0,94295.0,0.22768104]
[1746499626437,0.1834,94296.0,94295.0,0.22768104]
[1746499626644,0.1834,94296.0,94295.0,0.22776898]
[1746499626843,0.1834,94296.0,94295.0,0.2227145]
[1746499627944,0.1834,94296.0,94295.0,0.23827346]
[1746499628540,0.1834,94296.0,94295.0,0.23827321]
[1746499629239,0.1,94300.0,94299.0,0.2121231]
[1746499629436,0.1,94300.0,94299.0,0.22768181]
[1746499629746,0.1,94300.0,94299.0,0.25768181]
[1746499629938,0.1,94300.0,94299.0,0.32168181]
[1746499630338,0.3608,94317.0,94306.0,0.0530264]
[1746499630639,0.0915,94316.0,94309.0,0.2121006]
[1746499630838,0.0609,94316.0,94309.0,0.22763709]
[1746499632241,0.1195,94310.0,94309.0,0.22763709]
[1746499632436,0.1195,94310.0,94309.0,0.2121006]
[1746499632835,0.1195,94310.0,94309.0,0.2421006]
[1746499633541,0.1195,94310.0,94309.0,0.2121006]
[1746499634137,0.0015,94310.0,94309.0,0.2121006]
[1746499638944,0.0015,94310.0,94309.0,0.22785357]
[1746499641147,0.0015,94310.0,94309.0,0.22773814]
[1746499643148,0.0316,94310.0,94309.0,0.22773814]
[1746499644749,0.0316,94310.0,94309.0,0.22780757]
[1746499650250,0.0316,94310.0,94309.0,0.22766403]
[1746499650946,0.0316,94310.0,94309.0,0.2121006]
[1746499651143,0.1496,94310.0,94309.0,0.2121006]
[1746499661257,0.1496,94310.0,94309.0,0.22768884]
[1746499661759,0.16156564,94324.0,94322.0,0.2120714]
[1746499662055,0.0634,94325.0,94322.0,0.22766314]